[Event "ONJK DE"]
[Site "Enschede, Netherlands"]
[Date "2022.08.12"]
[Round "9.3"]
[White "Georgopoulos-Karbouniaris"]
[Black "Terlouw, Wouter"]
[Result "0-1"]
[TimeControl "40min + 30sec/move"]
[WhiteElo "1032"]
[BlackElo "1720"]

1. e3 {[%clk 00:40:59]} Nf6 {[%clk 00:40:29]} {[%emt 00:00:31]} 2. Nf3 {[%clk
00:41:12]} {[%emt 00:00:18]} e6 {[%clk 00:40:18]} {[%emt 00:00:40]} 3. b3
{[%clk 00:41:15]} {[%emt 00:00:27]} d5 {[%clk 00:40:13]} {[%emt 00:00:35]} 4.
Bb2 {[%clk 00:41:21]} {[%emt 00:00:25]} c5 {[%clk 00:39:09]} {[%emt 00:01:34]}
5. c4 {[%clk 00:41:19]} {[%emt 00:00:32]} Nc6 {[%emt 00:02:00]} 6. d4 {[%clk
00:41:18]} cxd4 {[%clk 00:37:50]} {[%emt 00:00:50]} 7. Nxd4 {[%clk 00:40:57]}
{[%emt 00:00:51]} Bb4+ {[%clk 00:37:33]} {[%emt 00:00:44]} 8. Nd2 {[%clk
00:38:57]} {[%emt 00:02:33]} Nxd4 {[%clk 00:37:23]} {[%emt 00:00:39]} 9. exd4
{[%clk 00:38:40]} {[%emt 00:00:47]} Ne4 {[%clk 00:37:36]} {[%emt 00:00:16]} 10.
Bc1 {[%clk 00:39:00]} {[%emt 00:00:12]} Qf6 {[%clk 00:36:16]} {[%emt 00:01:47]}
11. Qe2 {[%clk 00:38:13]} {[%emt 00:01:20]} Qxd4 {[%clk 00:36:24]} {[%emt
00:00:22]} 12. Rb1 {[%clk 00:38:02]} {[%emt 00:00:42]} Nc3 {[%clk 00:35:46]}
{[%emt 00:01:03]} 13. Qd3 {[%clk 00:36:08]} {[%emt 00:02:28]} Qxd3 {[%clk
00:34:44]} {[%emt 00:01:31]} 14. Bxd3 {[%clk 00:36:33]} {[%emt 00:00:06]} Nxb1
{[%clk 00:34:44]} {[%emt 00:00:31]} 15. Bxb1 {[%clk 00:36:57]} {[%emt
00:00:06]} dxc4 {[%clk 00:34:46]} {[%emt 00:00:28]} 16. bxc4 {[%clk 00:36:57]}
{[%emt 00:00:29]} Bd7 {[%clk 00:34:13]} {[%emt 00:01:03]} 17. O-O {[%clk
00:37:05]} {[%emt 00:00:22]} Bc6 {[%clk 00:32:40]} {[%emt 00:02:03]} 18. Nb3
{[%clk 00:36:58]} {[%emt 00:00:38]} O-O {[%clk 00:32:07]} {[%emt 00:01:03]} 19.
Bb2 {[%clk 00:34:48]} {[%emt 00:02:40]} Rad8 {[%clk 00:31:12]} {[%emt
00:01:23]} 20. h3 {[%clk 00:34:17]} {[%emt 00:01:03]} Ba4 {[%clk 00:28:58]}
{[%emt 00:02:39]} 21. a3 {[%clk 00:32:19]} {[%emt 00:02:33]} Be7 {[%clk
00:26:00]} {[%emt 00:03:27]} 22. Nc1 {[%clk 00:30:56]} {[%emt 00:01:53]} Bf6
{[%clk 00:25:19]} {[%emt 00:01:11]} 23. Bxf6 {[%clk 00:30:25]} {[%emt
00:01:01]} gxf6 {[%clk 00:25:40]} {[%emt 00:00:09]} 24. Ne2 {[%clk 00:30:38]}
{[%emt 00:00:16]} Rd1 {[%clk 00:21:07]} {[%emt 00:04:58]} 25. Ng3 {[%clk
00:28:45]} {[%emt 00:02:29]} Rxf1+ {[%clk 00:20:06]} {[%emt 00:01:31]} 26. Kxf1
{[%clk 00:29:08]} {[%emt 00:00:07]} Rd8 {[%clk 00:19:55]} {[%emt 00:00:35]} 27.
Ke2 {[%clk 00:29:01]} {[%emt 00:00:43]} Bb3 {[%clk 00:19:35]} {[%emt 00:00:44]}
28. Bd3 {[%clk 00:28:51]} {[%emt 00:00:46]} f5 {[%clk 00:17:40]} {[%emt
00:02:23]} 29. Ke3 {[%clk 00:29:01]} {[%emt 00:00:23]} Kf8 {[%clk 00:16:19]}
{[%emt 00:01:48]} 30. Nf1 {[%clk 00:28:17]} {[%emt 00:01:16]} f4+ {[%clk
00:15:49]} {[%emt 00:01:01]} 31. Ke2 {[%clk 00:28:07]} {[%emt 00:00:40]} Rd4
{[%clk 00:16:00]} {[%emt 00:00:16]} 32. Nd2 {[%clk 00:28:13]} {[%emt 00:00:26]}
Bd1+ {[%clk 00:16:07]} {[%emt 00:00:23]} 33. Kxd1 {[%clk 00:28:10]} {[%emt
00:00:34]} Rxd3 {[%clk 00:16:33]} {[%emt 00:00:04]} 34. Ke2 {[%clk 00:28:25]}
{[%emt 00:00:14]} Rxa3 {[%clk 00:16:53]} {[%emt 00:00:10]} 35. Ne4 {[%clk
00:27:55]} {[%emt 00:00:59]} Ke7 {[%clk 00:15:59]} {[%emt 00:01:25]} 36. f3
{[%clk 00:27:34]} {[%emt 00:00:51]} a5 {[%clk 00:15:17]} {[%emt 00:01:11]} 37.
Kd2 {[%clk 00:27:28]} {[%emt 00:00:38]} Ra2+ {[%clk 00:15:22]} {[%emt
00:00:25]} 38. Kc3 {[%clk 00:27:42]} {[%emt 00:00:16]} Rxg2 {[%clk 00:15:31]}
{[%emt 00:00:20]} 39. c5 {[%clk 00:27:49]} {[%emt 00:00:24]} Re2 {[%clk
00:13:35]} {[%emt 00:02:19]} 40. Ng5 {[%clk 00:27:18]} {[%emt 00:01:07]} h6
{[%clk 00:13:47]} {[%emt 00:00:18]} 41. Ne4 {[%emt 00:00:37]} Rxe4 {[%clk
00:14:06]} {[%emt 00:00:10]} 42. h4 {[%clk 00:27:36]} {[%emt 00:00:07]} Re3+
{[%clk 00:14:20]} {[%emt 00:00:16]} 43. Kb2 {[%clk 00:27:54]} {[%emt 00:00:12]}
Rxf3 {[%clk 00:14:38]} {[%emt 00:00:12]} 44. c6 {[%clk 00:28:15]} {[%emt
00:00:09]} bxc6 {[%clk 00:14:56]} {[%emt 00:00:12]} 45. h5 {[%clk 00:28:42]}
{[%emt 00:00:03]} Kd6 {[%clk 00:15:11]} {[%emt 00:00:15]} 46. Kc2 {[%clk
00:29:05]} {[%emt 00:00:06]} a4 {[%clk 00:15:35]} {[%emt 00:00:07]} 47. Kb2
{[%clk 00:29:29]} {[%emt 00:00:06]} Rb3+ {[%clk 00:15:58]} {[%emt 00:00:06]} 48.
Ka2 {[%clk 00:29:52]} {[%emt 00:00:07]} f3 {[%clk 00:16:19]} {[%emt 00:00:09]}
49. Ka1 {[%clk 00:30:12]} {[%emt 00:00:10]} f2 {[%clk 00:16:46]} {[%emt
00:00:03]} 50. Ka2 {[%clk 00:30:34]} {[%emt 00:00:09]} e5 {[%clk 00:16:44]}
{[%emt 00:00:32]} 51. Ka1 {[%clk 00:30:52]} {[%emt 00:00:12]} f1=Q+ {[%emt
00:00:10]} 52. Ka2 {[%clk 00:31:04]} {[%emt 00:00:17]} Qb1# {[%clk 00:17:34]}
{[%emt 00:00:01]} 0-1

[Event "ONJK DE"]
[Site "Enschede, Netherlands"]
[Date "2022.08.12"]
[Round "9.4"]
[White "Dijkhuijsen, Thomas"]
[Black "Gang, Kevin Wan Ze"]
[Result "1/2-1/2"]
[TimeControl "40min + 30sec/move"]
[WhiteElo "1306"]
[BlackElo "1105"]

1. e4 {[%clk 00:40:57]} {[%emt 00:00:02]} e5 {[%clk 00:40:57]} {[%emt
00:00:03]} 2. Nf3 {[%clk 00:41:24]} {[%emt 00:00:04]} Nc6 {[%clk 00:41:22]}
{[%emt 00:00:04]} 3. d4 {[%clk 00:41:48]} {[%emt 00:00:06]} exd4 {[%clk
00:41:47]} {[%emt 00:00:06]} 4. Nxd4 {[%clk 00:42:12]} {[%emt 00:00:04]} Nf6
{[%clk 00:41:52]} {[%emt 00:00:26]} 5. Nxc6 {[%clk 00:42:35]} {[%emt 00:00:08]}
bxc6 {[%clk 00:41:51]} {[%emt 00:00:30]} 6. e5 {[%clk 00:42:57]} {[%emt
00:00:08]} Qe7 {[%clk 00:42:17]} {[%emt 00:00:05]} 7. Qe2 {[%clk 00:43:21]}
{[%emt 00:00:05]} Nd5 {[%clk 00:41:51]} {[%emt 00:00:56]} 8. c4 {[%clk
00:43:46]} {[%emt 00:00:05]} Nb6 {[%clk 00:42:10]} {[%emt 00:00:12]} 9. Nd2
{[%clk 00:44:01]} {[%emt 00:00:15]} d6 {[%clk 00:42:29]} {[%emt 00:00:10]} 10.
exd6 {[%clk 00:44:25]} {[%emt 00:00:06]} Qxe2+ {[%clk 00:42:43]} {[%emt
00:00:15]} 11. Bxe2 {[%clk 00:44:47]} {[%emt 00:00:09]} cxd6 {[%clk 00:42:47]}
{[%emt 00:00:27]} 12. O-O {[%clk 00:45:10]} {[%emt 00:00:07]} Ba6 {[%clk
00:42:58]} {[%emt 00:00:19]} 13. b3 {[%clk 00:44:51]} {[%emt 00:00:49]} O-O-O
{[%clk 00:43:17]} {[%emt 00:00:11]} 14. Bb2 {[%clk 00:44:06]} {[%emt 00:01:15]}
Rg8 {[%clk 00:43:09]} {[%emt 00:00:38]} 15. Bd3 {[%clk 00:44:01]} {[%emt
00:00:33]} g6 {[%clk 00:43:27]} {[%emt 00:00:13]} 16. Rfe1 {[%clk 00:43:45]}
{[%emt 00:00:47]} Bg7 {[%clk 00:43:41]} {[%emt 00:00:16]} 17. Bxg7 {[%clk
00:43:49]} {[%emt 00:00:25]} Rxg7 {[%clk 00:44:00]} {[%emt 00:00:11]} 18. Re7
{[%clk 00:43:24]} {[%emt 00:00:55]} Rd7 {[%clk 00:43:34]} {[%emt 00:00:56]} 19.
Rae1 {[%clk 00:43:12]} {[%emt 00:00:42]} f5 {[%clk 00:43:40]} {[%emt 00:00:25]}
20. R7e6 {[%clk 00:42:27]} {[%emt 00:01:14]} Kc7 {[%clk 00:43:14]} {[%emt
00:00:57]} 21. f4 {[%clk 00:40:42]} {[%emt 00:02:15]} d5 {[%clk 00:43:20]}
{[%emt 00:00:23]} 22. Bf1 {[%clk 00:38:37]} {[%emt 00:02:35]} dxc4 {[%clk
00:42:59]} {[%emt 00:00:51]} 23. Nxc4 {[%clk 00:38:51]} {[%emt 00:00:15]} Nxc4
{[%clk 00:43:17]} {[%emt 00:00:13]} 24. bxc4 {[%clk 00:37:06]} {[%emt
00:02:15]} Rd4 {[%clk 00:43:20]} {[%emt 00:00:28]} 25. c5 {[%clk 00:36:41]}
{[%emt 00:00:55]} Bxf1 {[%clk 00:43:36]} {[%emt 00:00:14]} 26. Rxf1 {[%clk
00:36:53]} {[%emt 00:00:17]} Rc4 {[%clk 00:43:47]} {[%emt 00:00:19]} 27. Re5
{[%clk 00:36:41]} {[%emt 00:00:41]} Ra4 {[%clk 00:43:54]} {[%emt 00:00:24]} 28.
Rf2 {[%clk 00:36:23]} {[%emt 00:00:48]} Rd7 {[%clk 00:44:00]} {[%emt 00:00:24]}
29. g3 {[%clk 00:36:36]} {[%emt 00:00:17]} Ra5 {[%clk 00:43:53]} {[%emt
00:00:38]} 30. Rc2 {[%clk 00:31:09]} {[%emt 00:05:56]} Kd8 {[%clk 00:43:50]}
{[%emt 00:00:33]} 31. Re6 {[%clk 00:30:53]} {[%emt 00:00:45]} Rd5 {[%clk
00:43:14]} {[%emt 00:01:07]} 32. Rxc6 {[%clk 00:30:17]} {[%emt 00:01:07]} Kd7
{[%clk 00:43:23]} {[%emt 00:00:21]} 33. Rf6 {[%clk 00:29:15]} {[%emt 00:01:31]}
Ke7 {[%clk 00:43:02]} {[%emt 00:00:51]} 34. Rc6 {[%clk 00:28:21]} {[%emt
00:01:24]} Kd7 {[%clk 00:43:12]} {[%emt 00:00:20]} 35. Rd6+ {[%clk 00:28:10]}
{[%emt 00:00:41]} Rxd6 {[%clk 00:43:33]} {[%emt 00:00:09]} 36. cxd6 {[%clk
00:28:33]} {[%emt 00:00:07]} Kxd6 {[%clk 00:43:56]} {[%emt 00:00:07]} 37. Kf2
{[%clk 00:28:38]} {[%emt 00:00:24]} Ra3 {[%clk 00:44:17]} {[%emt 00:00:10]} 38.
Ke2 {[%clk 00:28:12]} {[%emt 00:00:56]} h6 {[%clk 00:44:24]} {[%emt 00:00:24]}
39. Kf2 {[%clk 00:27:40]} {[%emt 00:01:01]} a5 {[%clk 00:44:27]} {[%emt
00:00:27]} 40. h4 {[%clk 00:26:26]} {[%emt 00:01:44]} h5 {[%clk 00:44:42]}
{[%emt 00:00:16]} 41. Re2 {[%clk 00:24:51]} {[%emt 00:02:04]} Kd5 {[%clk
00:44:34]} {[%emt 00:00:38]} 42. Rc2 {[%clk 00:21:43]} {[%emt 00:03:37]}
1/2-1/2

[Event "ONJK DE"]
[Site "Enschede, Netherlands"]
[Date "2022.08.12"]
[Round "9.5"]
[White "Breider, Jayden"]
[Black "Rooijakkers, Liam"]
[Result "0-1"]
[TimeControl "40min + 30sec/move"]
[WhiteElo "1350"]
[BlackElo "1266"]

1. e4 {[%clk 00:40:58]} {[%emt 00:00:01]} e5 {[%clk 00:40:57]} {[%emt
00:00:04]} 2. Nf3 {[%clk 00:41:24]} {[%emt 00:00:03]} Nf6 {[%clk 00:41:21]}
{[%emt 00:00:07]} 3. Nxe5 {[%clk 00:41:46]} {[%emt 00:00:07]} Nc6 {[%clk
00:41:42]} {[%emt 00:00:09]} 4. Nxc6 {[%clk 00:42:09]} {[%emt 00:00:08]} dxc6
{[%clk 00:42:05]} {[%emt 00:00:07]} 5. d3 {[%clk 00:42:31]} {[%emt 00:00:07]}
Bc5 {[%clk 00:42:27]} {[%emt 00:00:08]} 6. Be2 {[%clk 00:42:52]} {[%emt
00:00:09]} h5 {[%clk 00:42:45]} {[%emt 00:00:12]} 7. Bg5 {[%clk 00:40:02]}
{[%emt 00:03:20]} Qd4 {[%clk 00:42:49]} {[%emt 00:00:26]} 8. O-O {[%clk
00:37:59]} {[%emt 00:02:34]} Qxb2 {[%clk 00:42:39]} {[%emt 00:00:39]} 9. Nd2
{[%clk 00:36:20]} {[%emt 00:02:09]} Ng4 {[%clk 00:42:27]} {[%emt 00:00:42]} 10.
Nc4 {[%clk 00:32:23]} {[%emt 00:04:28]} Qd4 {[%clk 00:41:33]} {[%emt 00:01:23]}
11. Be3 {[%clk 00:31:05]} {[%emt 00:01:48]} Nxe3 {[%clk 00:39:42]} {[%emt
00:02:20]} 12. Nxe3 {[%clk 00:31:22]} {[%emt 00:00:15]} Qf6 {[%clk 00:39:29]}
{[%emt 00:00:42]} 13. Qd2 {[%clk 00:27:36]} {[%emt 00:04:16]} Bd4 {[%clk
00:39:08]} {[%emt 00:00:52]} 14. Rab1 {[%clk 00:24:20]} {[%emt 00:03:46]} Be6
{[%emt 00:04:15]} 15. Qa5 {[%clk 00:21:33]} {[%emt 00:00:17]} Bb6 {[%clk
00:37:15]} {[%emt 00:01:38]} 16. Qa4 {[%clk 00:21:27]} {[%emt 00:00:35]} Qg5
{[%clk 00:37:17]} {[%emt 00:00:28]} 17. Nf5 {[%clk 00:17:09]} {[%emt 00:04:48]}
Bxf5 {[%clk 00:36:14]} {[%emt 00:01:33]} 18. exf5 {[%clk 00:17:09]} {[%emt
00:00:30]} Qxf5 {[%clk 00:36:16]} {[%emt 00:00:28]} 19. Rbe1 {[%clk 00:16:32]}
{[%emt 00:01:05]} O-O-O {[%clk 00:36:25]} {[%emt 00:00:22]} 20. Bf3 {[%clk
00:12:56]} {[%emt 00:04:07]} Rhe8 {[%clk 00:35:41]} {[%emt 00:01:13]} 21. Be4
{[%clk 00:10:44]} {[%emt 00:02:43]} Qc5 {[%clk 00:35:23]} {[%emt 00:00:46]} 22.
Qb3 {[%clk 00:09:15]} {[%emt 00:02:01]} f5 {[%clk 00:35:31]} {[%emt 00:00:22]}
23. d4 {[%clk 00:08:03]} {[%emt 00:01:42]} Qxd4 {[%clk 00:34:51]} {[%emt
00:01:09]} 24. Bxf5+ {[%clk 00:08:13]} {[%emt 00:00:21]} Kb8 {[%clk 00:35:14]}
{[%emt 00:00:06]} 25. Rxe8 {[%clk 00:08:28]} {[%emt 00:00:16]} Rxe8 {[%clk
00:35:36]} {[%emt 00:00:08]} 26. Qf7 {[%clk 00:08:10]} {[%emt 00:00:49]} Qxf2+
{[%clk 00:35:55]} {[%emt 00:00:10]} 27. Rxf2 {[%clk 00:08:19]} {[%emt
00:00:21]} Re1# {[%clk 00:36:21]} {[%emt 00:00:04]} 0-1

[Event "ONJK DE"]
[Site "Enschede, Netherlands"]
[Date "2022.08.12"]
[Round "9.6"]
[White "Tetova, Amir"]
[Black "Katpatal, Akshaj (E)"]
[Result "0-1"]
[TimeControl "40min + 30sec/move"]
[WhiteElo "1154"]
[BlackElo "1874"]

1. e4 {[%clk 00:40:58]} e5 {[%clk 00:40:56]} {[%emt 00:00:05]} 2. Nf3 {[%clk
00:41:26]} {[%emt 00:00:03]} Nc6 {[%clk 00:41:19]} {[%emt 00:00:07]} 3. Bc4
{[%clk 00:41:51]} {[%emt 00:00:04]} Bc5 {[%clk 00:41:42]} {[%emt 00:00:07]} 4.
c3 {[%clk 00:42:20]} {[%emt 00:00:02]} Nf6 {[%clk 00:42:03]} {[%emt 00:00:08]}
5. d4 {[%clk 00:42:46]} {[%emt 00:00:04]} exd4 {[%clk 00:42:28]} {[%emt
00:00:05]} 6. cxd4 {[%clk 00:43:12]} {[%emt 00:00:04]} Bb4+ {[%clk 00:42:43]}
{[%emt 00:00:14]} 7. Bd2 {[%clk 00:43:38]} {[%emt 00:00:05]} Bxd2+ {[%clk
00:43:08]} {[%emt 00:00:05]} 8. Nbxd2 {[%clk 00:44:05]} {[%emt 00:00:03]} d6
{[%clk 00:43:30]} {[%emt 00:00:08]} 9. O-O {[%clk 00:44:28]} {[%emt 00:00:07]}
Bg4 {[%clk 00:43:50]} {[%emt 00:00:09]} 10. Bb5 {[%clk 00:43:50]} {[%emt
00:01:10]} O-O {[%clk 00:44:10]} {[%emt 00:00:09]} 11. Bxc6 {[%clk 00:44:00]}
{[%emt 00:00:20]} bxc6 {[%clk 00:44:35]} {[%emt 00:00:06]} 12. h3 {[%clk
00:44:26]} {[%emt 00:00:03]} Bxf3 {[%clk 00:44:56]} {[%emt 00:00:09]} 13. Qxf3
{[%clk 00:44:51]} {[%emt 00:00:05]} Re8 {[%clk 00:45:18]} {[%emt 00:00:07]} 14.
Rac1 {[%clk 00:43:28]} {[%emt 00:01:53]} Qd7 {[%clk 00:45:32]} {[%emt
00:00:16]} 15. Rfe1 {[%clk 00:43:07]} {[%emt 00:00:51]} Rad8 {[%clk 00:44:48]}
{[%emt 00:01:14]} 16. Nc4 {[%clk 00:42:39]} {[%emt 00:01:00]} c5 {[%clk
00:44:02]} {[%emt 00:01:16]} 17. dxc5 {[%clk 00:42:47]} {[%emt 00:00:22]} dxc5
{[%clk 00:44:22]} {[%emt 00:00:09]} 18. Rcd1 {[%clk 00:43:09]} {[%emt
00:00:08]} Qe6 {[%clk 00:44:40]} {[%emt 00:00:12]} 19. Rxd8 {[%clk 00:39:54]}
{[%emt 00:03:46]} Rxd8 {[%clk 00:44:54]} {[%emt 00:00:16]} 20. b3 {[%clk
00:40:01]} {[%emt 00:00:22]} h6 {[%clk 00:45:11]} {[%emt 00:00:13]} 21. e5
{[%clk 00:39:55]} {[%emt 00:00:36]} Nd5 {[%clk 00:45:23]} {[%emt 00:00:18]} 22.
Rd1 {[%clk 00:39:58]} {[%emt 00:00:28]} c6 {[%clk 00:45:14]} {[%emt 00:00:38]}
23. a4 {[%clk 00:31:30]} {[%emt 00:08:59]} Rd7 {[%clk 00:44:32]} {[%emt
00:01:11]} 24. Qd3 {[%clk 00:25:22]} {[%emt 00:06:37]} Nb6 {[%clk 00:42:12]}
{[%emt 00:02:51]} 25. Qc2 {[%clk 00:17:13]} {[%emt 00:08:40]} Rxd1+ {[%emt
00:00:15]} 26. Qxd1 {[%clk 00:17:36]} Nxc4 {[%clk 00:42:59]} {[%emt 00:00:03]}
27. Qd8+ {[%clk 00:17:07]} {[%emt 00:00:58]} Kh7 {[%clk 00:43:22]} {[%emt
00:00:07]} 28. Qd3+ {[%clk 00:17:05]} {[%emt 00:00:32]} Kg8 {[%clk 00:43:14]}
{[%emt 00:00:37]} 29. Qd8+ {[%clk 00:17:32]} {[%emt 00:00:04]} Kh7 {[%clk
00:43:33]} {[%emt 00:00:11]} 30. Qd3+ {[%clk 00:17:59]} {[%emt 00:00:03]} g6
{[%clk 00:42:41]} {[%emt 00:01:22]} 31. Qxc4 {[%clk 00:18:19]} {[%emt
00:00:10]} Qe7 {[%clk 00:43:05]} {[%emt 00:00:06]} 32. f4 {[%clk 00:18:37]}
{[%emt 00:00:13]} Kg7 {[%clk 00:43:04]} {[%emt 00:00:30]} 33. Qe4 {[%clk
00:19:01]} {[%emt 00:00:07]} Qe6 {[%clk 00:43:27]} {[%emt 00:00:07]} 34. Qe3
{[%clk 00:19:10]} {[%emt 00:00:19]} c4 {[%clk 00:43:27]} {[%emt 00:00:32]} 35.
b4 {[%clk 00:18:10]} {[%emt 00:01:30]} Qd5 {[%clk 00:43:03]} {[%emt 00:00:53]}
36. Qc3 {[%clk 00:16:13]} {[%emt 00:02:28]} Qe4 {[%clk 00:43:00]} {[%emt
00:00:32]} 37. a5 {[%clk 00:11:23]} {[%emt 00:05:22]} Qxf4 {[%clk 00:42:06]}
{[%emt 00:01:23]} 38. g3 {[%clk 00:08:25]} {[%emt 00:03:28]} Qe4 {[%clk
00:42:27]} {[%emt 00:00:08]} 39. a6 {[%clk 00:07:13]} {[%emt 00:01:44]} Kg8
{[%clk 00:42:25]} {[%emt 00:00:30]} 40. Kf2 {[%clk 00:07:21]} {[%emt 00:00:23]}
Kf8 {[%clk 00:41:51]} {[%emt 00:01:45]} 41. Qe3 {[%clk 00:07:21]} {[%emt
00:00:49]} Qc2+ {[%clk 00:42:10]} {[%emt 00:00:10]} 42. Kf3 {[%clk 00:05:14]}
{[%emt 00:02:38]} Qb3 {[%clk 00:41:30]} {[%emt 00:01:10]} 43. Ke4 {[%clk
00:04:21]} {[%emt 00:01:24]} Qxb4 {[%clk 00:41:37]} {[%emt 00:00:22]} 44. Qxh6+
{[%clk 00:04:21]} {[%emt 00:00:30]} Kg8 {[%clk 00:41:56]} {[%emt 00:00:09]} 45.
Qg5 {[%clk 00:03:41]} {[%emt 00:01:07]} Qb1+ {[%clk 00:41:58]} {[%emt
00:00:32]} 46. Kd4 {[%clk 00:03:52]} {[%emt 00:00:18]} Qd3+ {[%clk 00:42:19]}
{[%emt 00:00:10]} 47. Kc5 {[%clk 00:03:58]} {[%emt 00:00:25]} Qd5+ {[%clk
00:42:43]} {[%emt 00:00:06]} 48. Kb4 {[%clk 00:04:20]} {[%emt 00:00:08]} c5+
{[%clk 00:43:09]} {[%emt 00:00:04]} 49. Kb5 {[%clk 00:04:15]} {[%emt 00:00:35]}
c3 {[%clk 00:43:27]} {[%emt 00:00:11]} 50. h4 {[%clk 00:01:34]} {[%emt
00:03:12]} c2 {[%clk 00:43:39]} {[%emt 00:00:17]} 51. h5 {[%clk 00:00:46]}
{[%emt 00:01:19]} Qb3+ {[%clk 00:44:03]} {[%emt 00:00:06]} 52. Kc6 {[%clk
00:01:07]} {[%emt 00:00:10]} Qf3+ {[%clk 00:44:19]} {[%emt 00:00:12]} 53. Kc7
{[%clk 00:01:02]} {[%emt 00:00:37]} Qf5 {[%clk 00:44:34]} {[%emt 00:00:13]} 54.
Qd8+ {[%clk 00:01:00]} {[%emt 00:00:32]} Kh7 {[%clk 00:44:47]} {[%emt
00:00:18]} 55. hxg6 {[%clk 00:01:13]} {[%emt 00:00:18]} Qxg6 {[%clk 00:45:10]}
{[%emt 00:00:05]} 56. Qh4 {[%clk 00:01:32]} {[%emt 00:00:12]} Kg7 {[%clk
00:45:20]} {[%emt 00:00:20]} 57. Qc4 {[%clk 00:01:27]} {[%emt 00:00:36]} Qb6+
{[%clk 00:45:42]} {[%emt 00:00:07]} 58. Kd7 {[%clk 00:01:26]} {[%emt 00:00:43]}
Qe6+ {[%clk 00:46:07]} {[%emt 00:00:05]} 0-1

[Event "ONJK DE"]
[Site "Enschede, Netherlands"]
[Date "2022.08.12"]
[Round "9.7"]
[White "Thijssen, Freek (E)"]
[Black "Los, Evan"]
[Result "1-0"]
[TimeControl "40min + 30sec/move"]
[WhiteElo "1484"]
[BlackElo "1050"]

1. e4 {[%clk 00:40:58]} {[%emt 00:00:02]} e5 {[%clk 00:40:56]} {[%emt
00:00:04]} 2. Nf3 {[%clk 00:41:25]} {[%emt 00:00:04]} Nc6 {[%clk 00:41:19]}
{[%emt 00:00:07]} 3. Bc4 {[%clk 00:41:49]} {[%emt 00:00:05]} Nf6 {[%clk
00:41:37]} {[%emt 00:00:12]} 4. d3 {[%clk 00:42:15]} {[%emt 00:00:05]} Qe7
{[%clk 00:41:26]} {[%emt 00:00:40]} 5. Nc3 {[%clk 00:42:35]} {[%emt 00:00:10]}
Na5 {[%clk 00:41:50]} {[%emt 00:00:06]} 6. Bb3 {[%clk 00:42:58]} {[%emt
00:00:07]} c6 {[%clk 00:42:13]} {[%emt 00:00:07]} 7. Bg5 {[%clk 00:41:03]}
{[%emt 00:02:25]} d6 {[%clk 00:42:23]} {[%emt 00:00:20]} 8. h3 {[%clk
00:41:15]} {[%emt 00:00:19]} Bd7 {[%clk 00:42:19]} {[%emt 00:00:34]} 9. O-O
{[%clk 00:40:51]} {[%emt 00:00:54]} h6 {[%clk 00:42:34]} {[%emt 00:00:15]} 10.
Bxf6 {[%clk 00:41:05]} {[%emt 00:00:16]} Qxf6 {[%clk 00:42:55]} {[%emt
00:00:08]} 11. d4 {[%clk 00:40:54]} {[%emt 00:00:41]} O-O-O {[%clk 00:41:50]}
{[%emt 00:01:35]} 12. d5 {[%clk 00:40:01]} {[%emt 00:01:24]} g5 {[%clk
00:40:43]} {[%emt 00:01:37]} 13. dxc6 {[%clk 00:39:53]} {[%emt 00:00:38]} Nxc6
{[%clk 00:41:05]} {[%emt 00:00:06]} 14. Nh2 {[%clk 00:35:07]} {[%emt 00:05:17]}
h5 {[%clk 00:38:19]} {[%emt 00:03:16]} 15. Nd5 {[%clk 00:33:00]} {[%emt
00:02:36]} Qg6 {[%clk 00:38:35]} {[%emt 00:00:14]} 16. Qd3 {[%clk 00:31:30]}
{[%emt 00:02:01]} g4 {[%clk 00:37:56]} {[%emt 00:01:09]} 17. h4 {[%clk
00:31:18]} {[%emt 00:00:42]} f5 {[%clk 00:36:41]} {[%emt 00:01:45]} 18. exf5
{[%clk 00:30:24]} {[%emt 00:01:24]} Bxf5 {[%clk 00:36:27]} {[%emt 00:00:44]} 19.
Qc3 {[%clk 00:30:21]} {[%emt 00:00:33]} Bg7 {[%clk 00:36:20]} {[%emt 00:00:35]}
20. Ne7+ {[%clk 00:30:39]} {[%emt 00:00:14]} 1-0